[Event "Early-Titled-Tuesday-Blitz-March-05-2024"]
[Site "Chess.com"]
[Date "2024.03.05"]
[Round "1"]
[White "Chessdude1987"]
[Black "Alexei_Gubajdullin"]
[Result "1/2-1/2"]
[WhiteElo "2374"]
[BlackElo "2658"]
[TimeControl "180+1"]
[EndTime "8:07:54 PST"]
[Termination "Game drawn by stalemate"]

1. e4 {[%clk 0:03:00.9]} 1... e5 {[%clk 0:02:57.3]} 2. Nf3 {[%clk 0:03:00.6]}
2... Nf6 {[%clk 0:02:57]} 3. Nxe5 {[%clk 0:02:59.9]} 3... d6 {[%clk 0:02:56.6]}
4. Nf3 {[%clk 0:03:00.5]} 4... Nxe4 {[%clk 0:02:56]} 5. c4 {[%clk 0:03:01.3]}
5... Be7 {[%clk 0:02:54.8]} 6. Nc3 {[%clk 0:03:02]} 6... Nxc3 {[%clk 0:02:54.2]}
7. dxc3 {[%clk 0:03:02.9]} 7... O-O {[%clk 0:02:53.7]} 8. Qc2 {[%clk 0:02:59.9]}
8... Nc6 {[%clk 0:02:52.3]} 9. Bd3 {[%clk 0:02:59.3]} 9... h6 {[%clk 0:02:51.5]}
10. Be3 {[%clk 0:02:57.8]} 10... Bg4 {[%clk 0:02:49.8]} 11. O-O-O {[%clk
0:02:53.8]} 11... Bxf3 {[%clk 0:02:44]} 12. gxf3 {[%clk 0:02:53.5]} 12... Ne5
{[%clk 0:02:43.2]} 13. Be2 {[%clk 0:02:33.8]} 13... Qd7 {[%clk 0:02:27.2]} 14.
Rhg1 {[%clk 0:02:29.3]} 14... Kh8 {[%clk 0:02:18.4]} 15. f4 {[%clk 0:02:23.9]}
15... Nc6 {[%clk 0:02:16]} 16. f5 {[%clk 0:02:12.8]} 16... Bf6 {[%clk
0:02:05.8]} 17. Rg3 {[%clk 0:02:07.9]} 17... Rfe8 {[%clk 0:01:59.9]} 18. Rdg1
{[%clk 0:02:07]} 18... Re5 {[%clk 0:01:57.9]} 19. Rh3 {[%clk 0:01:59.9]} 19...
Qxf5 {[%clk 0:01:27.7]} 20. Qxf5 {[%clk 0:01:24.6]} 20... Rxf5 {[%clk
0:01:26.3]} 21. Bxh6 {[%clk 0:01:23.7]} 21... Kg8 {[%clk 0:01:22.5]} 22. Bxg7
{[%clk 0:01:18.4]} 22... Bxg7 {[%clk 0:01:21.1]} 23. Rhg3 {[%clk 0:01:18]} 23...
Kf8 {[%clk 0:01:22]} 24. Rxg7 {[%clk 0:01:17.4]} 24... Ke7 {[%clk 0:01:22.9]}
25. R1g2 {[%clk 0:01:06.2]} 25... Rh8 {[%clk 0:01:20.4]} 26. R7g3 {[%clk
0:00:46]} 26... Ne5 {[%clk 0:01:16.7]} 27. Re3 {[%clk 0:00:40.7]} 27... Rh4
{[%clk 0:01:07.8]} 28. c5 {[%clk 0:00:39.7]} 28... Rhf4 {[%clk 0:00:39.7]} 29.
cxd6+ {[%clk 0:00:36.2]} 29... cxd6 {[%clk 0:00:39]} 30. f3 {[%clk 0:00:26.8]}
30... Kf6 {[%clk 0:00:37.9]} 31. b3 {[%clk 0:00:22.5]} 31... Nxf3 {[%clk
0:00:34.6]} 32. Bxf3 {[%clk 0:00:22]} 32... Rxf3 {[%clk 0:00:34.3]} 33. Rxf3
{[%clk 0:00:21.4]} 33... Rxf3 {[%clk 0:00:33.8]} 34. Kd2 {[%clk 0:00:21.6]}
34... Rh3 {[%clk 0:00:33.1]} 35. c4 {[%clk 0:00:20.7]} 35... a5 {[%clk
0:00:32.1]} 36. Rf2+ {[%clk 0:00:18.9]} 36... Ke5 {[%clk 0:00:31.2]} 37. Rxf7
{[%clk 0:00:15.4]} 37... Rxh2+ {[%clk 0:00:30.6]} 38. Kc3 {[%clk 0:00:15.6]}
38... Rh3+ {[%clk 0:00:28.3]} 39. Kc2 {[%clk 0:00:14.9]} 39... Rh2+ {[%clk
0:00:27.6]} 40. Kc3 {[%clk 0:00:14.8]} 40... Rxa2 {[%clk 0:00:26.2]} 41. Rxb7
{[%clk 0:00:14.2]} 41... Ke6 {[%clk 0:00:26.1]} 42. Ra7 {[%clk 0:00:13.5]} 42...
Ke5 {[%clk 0:00:21.5]} 43. Ra6 {[%clk 0:00:12.9]} 43... d5 {[%clk 0:00:19.2]}
44. cxd5 {[%clk 0:00:11.6]} 44... Kxd5 {[%clk 0:00:19.1]} 45. Rh6 {[%clk
0:00:11.2]} 45... Re2 {[%clk 0:00:16.9]} 46. Rh5+ {[%clk 0:00:11]} 46... Re5
{[%clk 0:00:14.9]} 47. Rxe5+ {[%clk 0:00:10.8]} 47... Kxe5 {[%clk 0:00:14.9]}
48. Kc4 {[%clk 0:00:11.2]} 48... a4 {[%clk 0:00:13.5]} 49. bxa4 {[%clk
0:00:09.3]} 49... Kd6 {[%clk 0:00:12.6]} 50. Kb5 {[%clk 0:00:09.6]} 50... Kc7
{[%clk 0:00:12.4]} 51. Ka6 {[%clk 0:00:10]} 51... Kb8 {[%clk 0:00:12.4]} 52. Kb6
{[%clk 0:00:10.3]} 52... Ka8 {[%clk 0:00:12.7]} 53. a5 {[%clk 0:00:10.8]} 53...
Kb8 {[%clk 0:00:12.9]} 54. a6 {[%clk 0:00:11.3]} 54... Ka8 {[%clk 0:00:13.3]}
55. a7 {[%clk 0:00:11.8]} 1/2-1/2

[Event "Early-Titled-Tuesday-Blitz-March-05-2024"]
[Site "Chess.com"]
[Date "2024.03.05"]
[Round "1"]
[White "DarZay"]
[Black "awesomevishesh"]
[Result "0-1"]
[WhiteElo "2310"]
[BlackElo "2614"]
[TimeControl "180+1"]
[EndTime "8:07:54 PST"]
[Termination "awesomevishesh won by resignation"]

1. e4 {[%clk 0:02:57.8]} 1... c5 {[%clk 0:02:49.5]} 2. Nf3 {[%clk 0:02:55.1]}
2... d6 {[%clk 0:02:49.1]} 3. d4 {[%clk 0:02:54.7]} 3... cxd4 {[%clk 0:02:50]}
4. Nxd4 {[%clk 0:02:54.7]} 4... Nf6 {[%clk 0:02:49.4]} 5. Nc3 {[%clk 0:02:51.9]}
5... a6 {[%clk 0:02:49.2]} 6. a4 {[%clk 0:02:50]} 6... e5 {[%clk 0:02:47.9]} 7.
Nb3 {[%clk 0:02:49.4]} 7... Be7 {[%clk 0:02:45.5]} 8. a5 {[%clk 0:02:47]} 8...
Be6 {[%clk 0:02:42.2]} 9. Be3 {[%clk 0:02:45]} 9... Nbd7 {[%clk 0:02:41.2]} 10.
Be2 {[%clk 0:02:38]} 10... Rc8 {[%clk 0:02:40.6]} 11. Bf3 {[%clk 0:02:36.8]}
11... O-O {[%clk 0:02:35.4]} 12. O-O {[%clk 0:02:36.4]} 12... h6 {[%clk
0:02:32.9]} 13. Qd2 {[%clk 0:02:25.7]} 13... Re8 {[%clk 0:02:29.3]} 14. Nd5
{[%clk 0:02:21.2]} 14... Nxd5 {[%clk 0:02:20.5]} 15. exd5 {[%clk 0:02:21.1]}
15... Bf5 {[%clk 0:02:20.5]} 16. Rac1 {[%clk 0:02:18.8]} 16... e4 {[%clk
0:01:57.5]} 17. Be2 {[%clk 0:02:18.3]} 17... Ne5 {[%clk 0:01:55.9]} 18. c4
{[%clk 0:02:15]} 18... Bg6 {[%clk 0:01:41.1]} 19. Bb6 {[%clk 0:01:53.2]} 19...
Qd7 {[%clk 0:01:40.7]} 20. Qe3 {[%clk 0:01:53.3]} 20... Nd3 {[%clk 0:01:37.1]}
21. Rc3 {[%clk 0:01:39.2]} 21... Bg5 {[%clk 0:01:36.2]} 22. Qd4 {[%clk
0:01:32.6]} 22... Bf6 {[%clk 0:01:34.8]} 23. Qe3 {[%clk 0:01:31.3]} 23... Bxc3
{[%clk 0:01:34.6]} 24. bxc3 {[%clk 0:01:31.7]} 24... Rxc4 {[%clk 0:01:28.7]} 25.
Bd4 {[%clk 0:01:23.7]} 25... Rcc8 {[%clk 0:01:20.7]} 26. Qg3 {[%clk 0:01:21.5]}
26... Ne5 {[%clk 0:01:12.6]} 27. Nd2 {[%clk 0:01:10.6]} 27... Kh7 {[%clk
0:01:07.9]} 28. f4 {[%clk 0:01:03]} 28... exf3 {[%clk 0:01:07.1]} 29. Nxf3
{[%clk 0:01:03]} 29... Nxf3+ {[%clk 0:01:06.4]} 30. Bxf3 {[%clk 0:01:02.7]}
30... Qe7 {[%clk 0:00:48.2]} 31. Bg4 {[%clk 0:00:53.5]} 31... Rcd8 {[%clk
0:00:44.7]} 32. h4 {[%clk 0:00:52.6]} 32... f5 {[%clk 0:00:24.3]} 33. Bxf5
{[%clk 0:00:46.5]} 33... Bxf5 {[%clk 0:00:23.4]} 34. Rxf5 {[%clk 0:00:46.3]}
34... Qe1+ {[%clk 0:00:23.3]} 35. Kh2 {[%clk 0:00:34.7]} 35... Qxg3+ {[%clk
0:00:22.7]} 36. Kxg3 {[%clk 0:00:34.8]} 36... Rd7 {[%clk 0:00:19.7]} 37. Rf1
{[%clk 0:00:30.8]} 37... Ree7 {[%clk 0:00:19.7]} 38. Rf8 {[%clk 0:00:29.4]}
38... Rf7 {[%clk 0:00:19.9]} 39. Re8 {[%clk 0:00:29.2]} 39... Rf5 {[%clk
0:00:16.7]} 40. c4 {[%clk 0:00:25.5]} 40... Rc7 {[%clk 0:00:16.2]} 41. Rd8
{[%clk 0:00:23.2]} 41... Rxc4 {[%clk 0:00:16.2]} 42. Ba1 {[%clk 0:00:20.7]}
42... h5 {[%clk 0:00:14]} 43. Rxd6 {[%clk 0:00:17.5]} 43... Rg4+ {[%clk
0:00:14.1]} 44. Kh3 {[%clk 0:00:17.9]} 44... Rf1 {[%clk 0:00:13.8]} 45. g3
{[%clk 0:00:16.9]} 45... Rxa1 {[%clk 0:00:13.6]} 46. Rd7 {[%clk 0:00:16]} 46...
Rg1 {[%clk 0:00:12.8]} 47. Rxb7 {[%clk 0:00:14.9]} 47... R1xg3+ {[%clk
0:00:12.7]} 48. Kh2 {[%clk 0:00:15.2]} 48... Rd3 {[%clk 0:00:12.9]} 49. Re7
{[%clk 0:00:13.8]} 49... Rxd5 {[%clk 0:00:12.7]} 0-1

[Event "Early-Titled-Tuesday-Blitz-March-05-2024"]
[Site "Chess.com"]
[Date "2024.03.05"]
[Round "1"]
[White "YoreDea"]
[Black "Louis-Paulsen-Fan"]
[Result "0-1"]
[WhiteElo "2554"]
[BlackElo "2215"]
[TimeControl "180+1"]
[EndTime "8:07:54 PST"]
[Termination "Louis-Paulsen-Fan won by checkmate"]

1. e4 {[%clk 0:03:00.9]} 1... Nf6 {[%clk 0:02:59.1]} 2. e5 {[%clk 0:02:56.7]}
2... Nd5 {[%clk 0:02:59]} 3. Nc3 {[%clk 0:02:57.2]} 3... Nxc3 {[%clk 0:02:58.9]}
4. dxc3 {[%clk 0:02:50]} 4... d6 {[%clk 0:02:59.1]} 5. Nf3 {[%clk 0:02:46.4]}
5... Nc6 {[%clk 0:02:58]} 6. Bf4 {[%clk 0:02:45.7]} 6... Bg4 {[%clk 0:02:52.1]}
7. Bb5 {[%clk 0:02:44.7]} 7... Qd7 {[%clk 0:02:38.1]} 8. h3 {[%clk 0:02:39.1]}
8... Bxf3 {[%clk 0:02:37.6]} 9. Qxf3 {[%clk 0:02:38.7]} 9... e6 {[%clk
0:02:27.2]} 10. O-O-O {[%clk 0:02:37.7]} 10... O-O-O {[%clk 0:02:24.8]} 11. exd6
{[%clk 0:02:30.2]} 11... Bxd6 {[%clk 0:02:22]} 12. Bxd6 {[%clk 0:02:26.5]} 12...
cxd6 {[%clk 0:02:22.9]} 13. Bxc6 {[%clk 0:02:25.6]} 13... bxc6 {[%clk
0:02:16.8]} 14. Rd4 {[%clk 0:02:25.1]} 14... d5 {[%clk 0:02:07.7]} 15. Ra4
{[%clk 0:02:19.8]} 15... Kb7 {[%clk 0:02:01.6]} 16. Rd1 {[%clk 0:02:17]} 16...
Rhe8 {[%clk 0:01:49.9]} 17. Rdd4 {[%clk 0:02:11.3]} 17... e5 {[%clk 0:01:46.1]}
18. Rdb4+ {[%clk 0:02:09.5]} 18... Ka8 {[%clk 0:01:46.4]} 19. Ra5 {[%clk
0:02:09.8]} 19... Rb8 {[%clk 0:01:42]} 20. Rba4 {[%clk 0:01:53.4]} 20... Rb7
{[%clk 0:01:41.6]} 21. b3 {[%clk 0:01:53.3]} 21... f5 {[%clk 0:01:35.5]} 22. Qe3
{[%clk 0:01:50]} 22... f4 {[%clk 0:01:22.4]} 23. Qc5 {[%clk 0:01:43.8]} 23... e4
{[%clk 0:01:22.6]} 24. Kd1 {[%clk 0:01:03.3]} 24... Re7 {[%clk 0:01:11.9]} 25.
Ra6 {[%clk 0:01:00.3]} 25... Rc7 {[%clk 0:01:02.1]} 26. Ke1 {[%clk 0:00:57.3]}
26... e3 {[%clk 0:01:01.6]} 27. f3 {[%clk 0:00:57.4]} 27... e2 {[%clk
0:00:58.7]} 28. Rxf4 {[%clk 0:00:55.9]} 28... Rc8 {[%clk 0:00:52.8]} 29. Rfa4
{[%clk 0:00:47.9]} 29... Rc7 {[%clk 0:00:51.2]} 30. h4 {[%clk 0:00:44.3]} 30...
h6 {[%clk 0:00:48.4]} 31. h5 {[%clk 0:00:35.9]} 31... Qe6 {[%clk 0:00:27.6]} 32.
Qd4 {[%clk 0:00:26.2]} 32... Qf5 {[%clk 0:00:21.7]} 33. Qd3 {[%clk 0:00:17.8]}
33... Qxh5 {[%clk 0:00:18.4]} 34. Rxa7+ {[%clk 0:00:03.1]} 34... Rxa7 {[%clk
0:00:17.3]} 35. Rxa7+ {[%clk 0:00:03.3]} 35... Kxa7 {[%clk 0:00:15.6]} 36. Qd4+
{[%clk 0:00:03.7]} 36... Ka8 {[%clk 0:00:09]} 37. Qa4+ {[%clk 0:00:03.5]} 37...
Kb8 {[%clk 0:00:08.7]} 38. Qb4+ {[%clk 0:00:03.6]} 38... Rb7 {[%clk 0:00:05.5]}
39. Qd6+ {[%clk 0:00:03.9]} 39... Kc8 {[%clk 0:00:05.4]} 40. Qxc6+ {[%clk
0:00:02.9]} 40... Rc7 {[%clk 0:00:05.9]} 41. Qe6+ {[%clk 0:00:03]} 41... Rd7
{[%clk 0:00:05.9]} 42. Qc6+ {[%clk 0:00:03.1]} 42... Kd8 {[%clk 0:00:06.2]} 43.
Qb6+ {[%clk 0:00:03]} 43... Ke8 {[%clk 0:00:06.4]} 44. Kxe2 {[%clk 0:00:03]}
44... Qe5+ {[%clk 0:00:05.5]} 45. Kf2 {[%clk 0:00:03.3]} 45... Re7 {[%clk
0:00:05.8]} 46. Qc6+ {[%clk 0:00:02.9]} 46... Kf8 {[%clk 0:00:05.6]} 47. Qc8+
{[%clk 0:00:03]} 47... Kf7 {[%clk 0:00:06.2]} 48. Qc5 {[%clk 0:00:03.1]} 48...
Qe1# {[%clk 0:00:05.6]} 0-1

[Event "Early-Titled-Tuesday-Blitz-March-05-2024"]
[Site "Chess.com"]
[Date "2024.03.05"]
[Round "1"]
[White "The_Machine04"]
[Black "annamaja"]
[Result "0-1"]
[WhiteElo "2787"]
[BlackElo "2465"]
[TimeControl "180+1"]
[EndTime "8:07:56 PST"]
[Termination "annamaja won by checkmate"]

1. d4 {[%clk 0:03:00.9]} 1... d5 {[%clk 0:02:59.8]} 2. Nf3 {[%clk 0:02:57.8]}
2... Nf6 {[%clk 0:02:57.6]} 3. e3 {[%clk 0:02:58]} 3... Bg4 {[%clk 0:02:50.9]}
4. h3 {[%clk 0:02:57.4]} 4... Bxf3 {[%clk 0:02:49.2]} 5. Qxf3 {[%clk 0:02:58.3]}
5... c6 {[%clk 0:02:49.3]} 6. Nd2 {[%clk 0:02:58.5]} 6... Nbd7 {[%clk
0:02:49.1]} 7. e4 {[%clk 0:02:55.2]} 7... e6 {[%clk 0:02:35.4]} 8. e5 {[%clk
0:02:54.9]} 8... Ng8 {[%clk 0:02:35.4]} 9. c3 {[%clk 0:02:53.8]} 9... c5 {[%clk
0:02:28.4]} 10. Bd3 {[%clk 0:02:48.7]} 10... Qb6 {[%clk 0:02:21.8]} 11. Qf4
{[%clk 0:02:43.9]} 11... Ne7 {[%clk 0:02:11.4]} 12. Nf3 {[%clk 0:02:40.1]} 12...
Ng6 {[%clk 0:02:10.2]} 13. Qe3 {[%clk 0:02:35]} 13... Be7 {[%clk 0:01:53.3]} 14.
h4 {[%clk 0:02:33.4]} 14... h6 {[%clk 0:01:34]} 15. h5 {[%clk 0:02:19.2]} 15...
Ngf8 {[%clk 0:01:32.3]} 16. Qf4 {[%clk 0:02:19]} 16... Nh7 {[%clk 0:01:26]} 17.
Qg4 {[%clk 0:02:16.1]} 17... Ng5 {[%clk 0:01:04.6]} 18. Nxg5 {[%clk 0:02:15.6]}
18... hxg5 {[%clk 0:01:04.4]} 19. O-O {[%clk 0:01:26.9]} 19... O-O-O {[%clk
0:00:56.4]} 20. b3 {[%clk 0:00:55.8]} 20... f5 {[%clk 0:00:49]} 21. exf6 {[%clk
0:00:47.9]} 21... Nxf6 {[%clk 0:00:49.1]} 22. Qxg5 {[%clk 0:00:23.3]} 22... Rxh5
{[%clk 0:00:44.2]} 23. Qxg7 {[%clk 0:00:21.6]} 23... Rdh8 {[%clk 0:00:18]} 24.
g3 {[%clk 0:00:16.5]} 24... Qd8 {[%clk 0:00:05]} 25. Bf4 {[%clk 0:00:10]} 25...
R8h7 {[%clk 0:00:04.9]} 26. Bxh7 {[%clk 0:00:09.4]} 26... Rxh7 {[%clk
0:00:05.8]} 27. Qg6 {[%clk 0:00:09.5]} 27... Qh8 {[%clk 0:00:06.3]} 28. Kg2
{[%clk 0:00:07.9]} 28... Rh2+ {[%clk 0:00:04.1]} 29. Kf3 {[%clk 0:00:08.4]}
29... Qh3 {[%clk 0:00:03.4]} 30. Rg1 {[%clk 0:00:07.1]} 30... Kd7 {[%clk
0:00:03.1]} 31. Be5 {[%clk 0:00:07.3]} 31... Ne4 {[%clk 0:00:03.5]} 32. Ke3
{[%clk 0:00:05.9]} 32... Rxf2 {[%clk 0:00:03.7]} 33. Rae1 {[%clk 0:00:02.8]}
33... Bg5+ {[%clk 0:00:03.8]} 34. Qxg5 {[%clk 0:00:01.7]} 34... Nxg5 {[%clk
0:00:03.4]} 35. Kxf2 {[%clk 0:00:02.6]} 35... Qh2+ {[%clk 0:00:03.2]} 36. Rg2
{[%clk 0:00:02.6]} 36... Nh3+ {[%clk 0:00:03.5]} 37. Kf3 {[%clk 0:00:02.8]}
37... Ng5+ {[%clk 0:00:03.4]} 38. Kf2 {[%clk 0:00:03.4]} 38... Nh3+ {[%clk
0:00:02.8]} 39. Kf3 {[%clk 0:00:03.8]} 39... Ng5+ {[%clk 0:00:02.9]} 40. Kg4
{[%clk 0:00:04.4]} 40... Qxg2 {[%clk 0:00:02.8]} 41. Kxg5 {[%clk 0:00:04.6]}
41... Qxa2 {[%clk 0:00:03]} 42. Bf4 {[%clk 0:00:05.5]} 42... Qxb3 {[%clk
0:00:03.1]} 43. dxc5 {[%clk 0:00:05.5]} 43... Qxc3 {[%clk 0:00:03.3]} 44. Rh1
{[%clk 0:00:05.8]} 44... Qg7+ {[%clk 0:00:02.9]} 45. Kh4 {[%clk 0:00:05.6]}
45... Qh7+ {[%clk 0:00:03.1]} 46. Kg4 {[%clk 0:00:06.2]} 46... Qxh1 {[%clk
0:00:03.7]} 47. Kg5 {[%clk 0:00:07.1]} 47... Qe4 {[%clk 0:00:04.1]} 48. Kf6
{[%clk 0:00:08]} 48... Qf5+ {[%clk 0:00:04.6]} 49. Kg7 {[%clk 0:00:08.6]} 49...
Kc6 {[%clk 0:00:05.3]} 50. Bd6 {[%clk 0:00:08.5]} 50... d4 {[%clk 0:00:05.7]}
51. g4 {[%clk 0:00:08.8]} 51... Qxg4+ {[%clk 0:00:06.2]} 52. Kf6 {[%clk
0:00:09.2]} 52... d3 {[%clk 0:00:07.1]} 53. Ke7 {[%clk 0:00:10.1]} 53... d2
{[%clk 0:00:07.7]} 54. Kd8 {[%clk 0:00:10.9]} 54... d1=Q {[%clk 0:00:08.3]} 55.
Kc8 {[%clk 0:00:11.8]} 55... e5+ {[%clk 0:00:08.4]} 56. Kb8 {[%clk 0:00:12]}
56... Qg8+ {[%clk 0:00:08.6]} 57. Kxa7 {[%clk 0:00:12.9]} 57... Qa4# {[%clk
0:00:08.3]} 0-1

[Event "Early-Titled-Tuesday-Blitz-March-05-2024"]
[Site "Chess.com"]
[Date "2024.03.05"]
[Round "1"]
[White "StrackedAktonamee"]
[Black "Gennady_Kozlov"]
[Result "1-0"]
[WhiteElo "2425"]
[BlackElo "2672"]
[TimeControl "180+1"]
[EndTime "8:08:03 PST"]
[Termination "StrackedAktonamee won by resignation"]

1. Nf3 {[%clk 0:03:00.9]} 1... d5 {[%clk 0:02:58.8]} 2. e3 {[%clk 0:03:00]} 2...
Bf5 {[%clk 0:02:56.4]} 3. b3 {[%clk 0:02:59.5]} 3... Nf6 {[%clk 0:02:56.1]} 4.
Bb2 {[%clk 0:03:00]} 4... e6 {[%clk 0:02:56.5]} 5. c4 {[%clk 0:02:58.9]} 5...
Be7 {[%clk 0:02:57]} 6. Nc3 {[%clk 0:02:58.2]} 6... c6 {[%clk 0:02:56.6]} 7. d4
{[%clk 0:02:54.7]} 7... O-O {[%clk 0:02:56.2]} 8. Bd3 {[%clk 0:02:53.9]} 8...
Bxd3 {[%clk 0:02:56.4]} 9. Qxd3 {[%clk 0:02:54.8]} 9... Nbd7 {[%clk 0:02:56.1]}
10. c5 {[%clk 0:02:54.1]} 10... Qc7 {[%clk 0:02:54.9]} 11. Ne2 {[%clk
0:02:50.9]} 11... b6 {[%clk 0:02:53.8]} 12. cxb6 {[%clk 0:02:47.7]} 12... axb6
{[%clk 0:02:52.7]} 13. O-O {[%clk 0:02:47.7]} 13... c5 {[%clk 0:02:52.3]} 14.
Rfc1 {[%clk 0:02:44.1]} 14... Ne4 {[%clk 0:02:48.1]} 15. Nc3 {[%clk 0:02:39.8]}
15... Ndf6 {[%clk 0:02:46.5]} 16. Ne5 {[%clk 0:02:35.2]} 16... Nxc3 {[%clk
0:02:30.5]} 17. Rxc3 {[%clk 0:02:29.9]} 17... Bd6 {[%clk 0:02:29.8]} 18. Nf3
{[%clk 0:02:08.3]} 18... Ne4 {[%clk 0:02:17.3]} 19. Rc2 {[%clk 0:02:08.3]} 19...
Qa7 {[%clk 0:02:03.4]} 20. Nd2 {[%clk 0:01:57.2]} 20... Nxd2 {[%clk 0:02:01]}
21. Qxd2 {[%clk 0:01:56.9]} 21... Rfc8 {[%clk 0:01:56]} 22. a3 {[%clk
0:01:50.7]} 22... Qa6 {[%clk 0:01:54.4]} 23. Rac1 {[%clk 0:01:44.2]} 23... Qb5
{[%clk 0:01:50.2]} 24. dxc5 {[%clk 0:01:24]} 24... bxc5 {[%clk 0:01:45.1]} 25.
b4 {[%clk 0:01:24.1]} 25... c4 {[%clk 0:01:43.7]} 26. Qd4 {[%clk 0:01:12.9]}
26... f6 {[%clk 0:01:39.2]} 27. Qg4 {[%clk 0:01:12]} 27... Kf7 {[%clk
0:01:28.1]} 28. e4 {[%clk 0:01:06.9]} 28... Re8 {[%clk 0:01:15.7]} 29. Rd1
{[%clk 0:00:48.9]} 29... Rad8 {[%clk 0:01:08.9]} 30. Rcd2 {[%clk 0:00:48.8]}
30... Qc6 {[%clk 0:00:57.5]} 31. exd5 {[%clk 0:00:46.9]} 31... exd5 {[%clk
0:00:56.9]} 32. Qh5+ {[%clk 0:00:47.3]} 32... g6 {[%clk 0:00:50.1]} 33. Qxh7+
{[%clk 0:00:46.2]} 33... Ke6 {[%clk 0:00:48.2]} 34. Qxg6 {[%clk 0:00:26.9]}
34... Kd7 {[%clk 0:00:42]} 35. Bxf6 {[%clk 0:00:17.9]} 35... Ra8 {[%clk
0:00:37.1]} 36. Qf7+ {[%clk 0:00:17.6]} 36... Kc8 {[%clk 0:00:36.8]} 37. Rxd5
{[%clk 0:00:15.1]} 37... Re2 {[%clk 0:00:27.7]} 38. Bc3 {[%clk 0:00:06.9]} 38...
Rxa3 {[%clk 0:00:19.3]} 39. Qf5+ {[%clk 0:00:04.9]} 39... Kb7 {[%clk 0:00:18.3]}
40. Rxd6 {[%clk 0:00:04.9]} 40... Ra1 {[%clk 0:00:14.8]} 41. Bxa1 {[%clk
0:00:02.7]} 41... Qxd6 {[%clk 0:00:14.3]} 42. Qb5+ {[%clk 0:00:02.8]} 42... Ka7
{[%clk 0:00:12]} 43. Qa4+ {[%clk 0:00:02.8]} 43... Kb8 {[%clk 0:00:11]} 44. Qb5+
{[%clk 0:00:03.1]} 44... Ka7 {[%clk 0:00:10]} 45. Rb1 {[%clk 0:00:02.2]} 45...
Qd2 {[%clk 0:00:08.5]} 46. Bd4+ {[%clk 0:00:02.4]} 46... Qxd4 {[%clk 0:00:06.7]}
47. Qa4+ {[%clk 0:00:02.7]} 47... Kb6 {[%clk 0:00:05.9]} 48. Qa5+ {[%clk
0:00:03.3]} 48... Kc6 {[%clk 0:00:06.2]} 49. Qa6+ {[%clk 0:00:03.6]} 49... Kd5
{[%clk 0:00:06.1]} 50. Qb5+ {[%clk 0:00:03.6]} 50... Ke4 {[%clk 0:00:05.8]} 51.
Qe8+ {[%clk 0:00:03.6]} 51... Kd3 {[%clk 0:00:03.9]} 52. Rd1+ {[%clk 0:00:04.2]}
52... Kc3 {[%clk 0:00:03.5]} 53. Qxe2 {[%clk 0:00:04.5]} 1-0

[Event "Early-Titled-Tuesday-Blitz-March-05-2024"]
[Site "Chess.com"]
[Date "2024.03.05"]
[Round "1"]
[White "tylityli"]
[Black "bazar-wokzal"]
[Result "0-1"]
[WhiteElo "2305"]
[BlackElo "2611"]
[TimeControl "180+1"]
[EndTime "8:08:07 PST"]
[Termination "bazar-wokzal won by checkmate"]

1. d4 {[%clk 0:02:59.1]} 1... Nf6 {[%clk 0:02:50.1]} 2. c4 {[%clk 0:02:58.7]}
2... Nc6 {[%clk 0:02:49.8]} 3. Nf3 {[%clk 0:02:57.8]} 3... e6 {[%clk 0:02:49.5]}
4. a3 {[%clk 0:02:58]} 4... g6 {[%clk 0:02:49]} 5. Nc3 {[%clk 0:02:57]} 5... Bg7
{[%clk 0:02:48.6]} 6. e4 {[%clk 0:02:57.3]} 6... d6 {[%clk 0:02:49]} 7. Be2
{[%clk 0:02:55.8]} 7... O-O {[%clk 0:02:48.1]} 8. O-O {[%clk 0:02:55.6]} 8... e5
{[%clk 0:02:48.2]} 9. d5 {[%clk 0:02:54.4]} 9... Nd4 {[%clk 0:02:47.5]} 10. Nxd4
{[%clk 0:02:53.1]} 10... exd4 {[%clk 0:02:47.6]} 11. Qxd4 {[%clk 0:02:53.4]}
11... Nd7 {[%clk 0:02:46.4]} 12. Qd1 {[%clk 0:02:41.7]} 12... Bxc3 {[%clk
0:02:45.2]} 13. bxc3 {[%clk 0:02:41.1]} 13... Nc5 {[%clk 0:02:44.2]} 14. f3
{[%clk 0:02:23.5]} 14... f5 {[%clk 0:02:43.6]} 15. Bh6 {[%clk 0:01:58.5]} 15...
Rf7 {[%clk 0:02:41]} 16. Qd4 {[%clk 0:01:50.4]} 16... Qh4 {[%clk 0:02:36.6]} 17.
Be3 {[%clk 0:01:33.2]} 17... Nb3 {[%clk 0:02:29.6]} 18. Qd3 {[%clk 0:01:26.4]}
18... Nxa1 {[%clk 0:02:28.8]} 19. Rxa1 {[%clk 0:01:27.3]} 19... fxe4 {[%clk
0:02:28.6]} 20. fxe4 {[%clk 0:01:27.3]} 20... Bg4 {[%clk 0:02:25.5]} 21. Bf1
{[%clk 0:01:26.4]} 21... Raf8 {[%clk 0:02:21.1]} 22. c5 {[%clk 0:01:23.4]} 22...
b6 {[%clk 0:02:09.1]} 23. cxd6 {[%clk 0:01:07.5]} 23... cxd6 {[%clk 0:02:08.7]}
24. e5 {[%clk 0:00:42.5]} 24... dxe5 {[%clk 0:02:01.8]} 25. d6 {[%clk
0:00:39.5]} 25... Be6 {[%clk 0:01:52.1]} 26. c4 {[%clk 0:00:32.6]} 26... Rc8
{[%clk 0:01:45.7]} 27. Rc1 {[%clk 0:00:30.5]} 27... Rd7 {[%clk 0:01:36.7]} 28.
g3 {[%clk 0:00:23.6]} 28... Qd8 {[%clk 0:01:33.3]} 29. Rd1 {[%clk 0:00:19.3]}
29... Bxc4 {[%clk 0:01:23.3]} 30. Qe4 {[%clk 0:00:18.6]} 30... Bxf1 {[%clk
0:01:21.9]} 31. Qd5+ {[%clk 0:00:16.5]} 31... Rf7 {[%clk 0:00:46.9]} 32. Rxf1
{[%clk 0:00:15.2]} 32... Qd7 {[%clk 0:00:47.2]} 33. Bg5 {[%clk 0:00:10.9]} 33...
Rf8 {[%clk 0:00:37.3]} 34. Bh6 {[%clk 0:00:09.7]} 34... Re8 {[%clk 0:00:30.8]}
35. Bg5 {[%clk 0:00:07.7]} 35... Re6 {[%clk 0:00:20]} 36. Rxf7 {[%clk
0:00:05.9]} 36... Kxf7 {[%clk 0:00:20.4]} 37. Be7 {[%clk 0:00:05.6]} 37... Kg7
{[%clk 0:00:17.1]} 38. Qa8 {[%clk 0:00:02.4]} 38... Rxe7 {[%clk 0:00:14.5]} 39.
dxe7 {[%clk 0:00:02.2]} 39... Qxe7 {[%clk 0:00:15]} 40. Qe4 {[%clk 0:00:02.8]}
40... h5 {[%clk 0:00:14.4]} 41. h4 {[%clk 0:00:02.8]} 41... Kf6 {[%clk
0:00:12.8]} 42. Kg2 {[%clk 0:00:03.2]} 42... Qxa3 {[%clk 0:00:11.6]} 43. Qc6+
{[%clk 0:00:03.5]} 43... Kf7 {[%clk 0:00:10.2]} 44. Qd5+ {[%clk 0:00:03.4]}
44... Ke7 {[%clk 0:00:09.9]} 45. Qxe5+ {[%clk 0:00:03.5]} 45... Kd7 {[%clk
0:00:09.2]} 46. Qg7+ {[%clk 0:00:03.6]} 46... Kc8 {[%clk 0:00:08.9]} 47. Qxg6
{[%clk 0:00:03.7]} 47... Qc5 {[%clk 0:00:08.5]} 48. Qg8+ {[%clk 0:00:02.9]}
48... Kb7 {[%clk 0:00:08.8]} 49. Qg7+ {[%clk 0:00:03]} 49... Ka6 {[%clk
0:00:08.6]} 50. Qa1+ {[%clk 0:00:02.6]} 50... Kb7 {[%clk 0:00:08.2]} 51. Qg7+
{[%clk 0:00:02.4]} 51... Qc7 {[%clk 0:00:08.5]} 52. Qg5 {[%clk 0:00:02.4]} 52...
Qc6+ {[%clk 0:00:08.4]} 53. Kh3 {[%clk 0:00:02.1]} 53... Qh1# {[%clk 0:00:07.5]}
0-1